Cogmind - Beta 13 @@@ ROGUE MODE // 2024.04.29 @ 23:52:22 Player: gigi283 Result: Self-destructed Performance ------------- Evolutions (2) 1000 Regions Visited (5) 1000 Robots Destroyed (43) 215 Value Destroyed (924) 924 Prototype IDs (0) 0 Alien Tech Used (0) 0 Bonus (137) 137 TOTAL SCORE: 3276 Bonus ------- Follower Combat Kills 155 Friendly Fire -18 Cogmind --------- Core Integrity 505/550 Matter 273/300 Energy 0/250 System Corruption 0% Temperature Cool (27) Movement Treading (240) Ox1 Location -8/Materials Parts ------- > --- POWER (1) -------- Ion Engine > --- PROPULSION (3) --- Light Treads Light Treads > --- UTILITY (4) ------ High-capacity Storage Unit Visual Processing Unit Signal Interpreter Shield Generator > --- WEAPON (3) ------- Light Assault Rifle > --- INVENTORY (20) --- Ion Engine Aluminum Leg Aluminum Leg Experimental Sensor Array Targeting Computer Shield Generator High-powered Tractor Beam Missile Launcher Peak State ------------ > --- POWER ------------ Ion Engine > --- PROPULSION ------- Light Treads Light Treads > --- UTILITY ---------- High-capacity Storage Unit Visual Processing Unit Signal Interpreter Shield Generator > --- WEAPON ----------- EM Pulse Gun Light Assault Rifle Rocket Launcher > --- INVENTORY -------- Ion Engine Aluminum Leg Aluminum Leg Experimental Sensor Array Targeting Computer Shield Generator High-powered Tractor Beam Missile Launcher [Rating: 15] Favorites ----------- Power Ion Engine Engine Ion Engine Propulsion Light Treads Treads Light Treads Utility Signal Interpreter Device Shield Generator Storage High-capacity Storage Unit Processor Signal Interpreter Weapon Grenade Launcher Energy Gun Small Laser Ballistic Gun Light Assault Rifle Ballistic Cannon Improved Light Cannon Launcher Grenade Launcher Build | -11 -10 -10 -9 -9 -8 ------- Run | Yrd Mat Min Mat Min Mat Slots Evolved 4 | . . . 2 . 2 Power . | . . . . . . Propulsion 1 | . . . . . 1 Utility 2 | . . . 2 . . Weapon 1 | . . . . . 1 Parts Attached 26 | 6 13 2 2 1 2 Power 3 | 1 2 . . . . Engine 3 | 1 2 . . . . Core . | . . . . . . Reactor . | . . . . . . Propulsion 6 | 2 2 1 . 1 . Treads 6 | 2 2 1 . 1 . Leg . | . . . . . . Wheel . | . . . . . . Hover . | . . . . . . Flight . | . . . . . . Utility 8 | 1 5 . 2 . . Device 3 | . 2 . 1 . . Storage 3 | 1 2 . . . . Processor 2 | . 1 . 1 . . Hackware . | . . . . . . Protection . | . . . . . . Artifact . | . . . . . . Weapon 9 | 2 4 1 . . 2 Energy Gun 3 | 2 . . . . 1 Energy Cannon . | . . . . . . Ballistic Gun 1 | . . 1 . . . Ballistic Cannon 1 | . 1 . . . . Launcher 4 | . 3 . . . 1 Special Weapon . | . . . . . . Impact Weapon . | . . . . . . Slashing Weapon . | . . . . . . Piercing Weapon . | . . . . . . Special Melee Weapon . | . . . . . . Unidentified Prototypes . | . . . . . . Parts Lost 4 | . . . . 2 2 Power . | . . . . . . Propulsion 1 | . . . . 1 . Utility . | . . . . . . Weapon 3 | . . . . 1 2 Highest Loss Streak 2 | . . . . 1 2 To Critical Strikes . | . . . . . . Average Slot Usage (%) 94 | . 92 100 100 89 84 Engine 12 | . 13 14 11 11 9 Treads 24 | . 27 28 22 16 18 Device 4 | . 2 . 11 11 9 Storage 12 | . 13 14 11 11 9 Processor 14 | . 6 14 22 22 18 Energy Gun 1 | . 3 . . . 6 Ballistic Gun 4 | . . 1 11 11 9 Ballistic Cannon 7 | . 11 12 . . . Launcher 11 | . 12 14 11 6 6 Naked Turns . | . . . . . . Heaviest Build 54 | 12 52 52 51 51 54 Greatest Support 40 | 40 40 40 40 40 40 Greatest Overweight (x) 7 | . 7 1 1 2 1 Average Overweight (x) . | . . 1 1 1 1 Largest Inventory Capacity 20 | 8 20 20 20 20 20 Average Capacity 18 | 6 15 20 20 20 20 Most Carried 10 | 2 9 10 8 9 10 Average Carried 6 | . 4 7 6 8 8 Final Capacity 20 | 8 20 20 20 20 20 Final Carried 9 | 1 6 8 7 9 8 Class Distribution -------------------- 98% | Mutant Dominant Class ---------------- Mutant | -10/Materials Mutant | -10/Mines Mutant | -9/Materials Mutant | -9/Mines Bomber | -8/Materials Resources | -11 -10 -10 -9 -9 -8 ----------- Run | Yrd Mat Min Mat Min Mat Matter Collected 923 | 183 447 198 37 48 10 Remotely 167 | . 167 . . . . Salvage Created 929 | . 511 194 83 83 58 Parts 70 | . 30 25 4 5 6 Haulers Intercepted . | . . . . . . Recyclers Shooed 1 | . . . . 1 . Parts Field Recycled . | . . . . . . Retrieved Matter . | . . . . . . Parts Self-Destructed . | . . . . . . Prevented . | . . . . . . Kills | -11 -10 -10 -9 -9 -8 ------- Run | Yrd Mat Min Mat Min Mat Combat Hostiles Destroyed 29 | . 11 10 3 3 2 Guns 3 | . . . . 3 . Cannons 8 | . 3 5 . . . AOE 18 | . 8 5 3 . 2 Classes Destroyed 8 | . 4 4 . . . Worker 6 | . 4 1 . . 1 Builder 1 | . . 1 . . . Tunneler 1 | . . 1 . . . Recycler 3 | . 2 1 . . . Watcher 4 | . 3 . 1 . . Swarmer 9 | . . 8 . 1 . Grunt 19 | . 11 1 3 2 2 Assembled 1 | . . 1 . . . Best Kill Streak 6 | . 6 4 4 2 3 Combat Bots Only 3 | . 2 3 3 2 2 Max Kills in Single Turn 3 | . 3 2 2 1 2 Gunslinging . | . . . . . . Exploded 2 | . 2 2 2 . 2 Melee . | . . . . . . Uniques/NPCs Destroyed . | . . . . . . Combat | -11 -10 -10 -9 -9 -8 -------- Run | Yrd Mat Min Mat Min Mat Hostile Shots Fired 127 | . 20 59 6 15 27 Missed 37 | . 8 16 1 4 8 Damage Taken 899 | . 185 343 37 80 254 Core 162 | . 38 67 8 4 45 Absorbed by Shields 125 | . . . 15 32 78 Regen/Repaired (Parts) 44 | . 44 . . . . Core Remaining (%) 85 | 100 . 58 . 97 . Volleys Fired 97 | . 39 32 6 15 5 Largest 3 | . 2 2 2 1 3 Hottest 93 | . 70 69 50 20 93 Shots Fired 128 | . 55 37 10 15 11 Gun 46 | . 16 . 6 15 9 Cannon 57 | . 25 32 . . . Launcher 25 | . 14 5 4 . 2 Special . | . . . . . . Kinetic 83 | . 25 32 6 15 5 Thermal 16 | . 16 . . . . Explosive 25 | . 14 5 4 . 2 Electromagnetic 4 | . . . . . 4 Robot Hit Streak 10 | . 9 3 4 8 10 Robot Miss Streak 9 | . 4 9 5 3 2 Penetration Max . | . . . . . . Secondary Targets . | . . . . . . Shots Hit Robots 58 | . 23 14 4 11 6 Core Hits 66 | . 27 16 6 6 11 Critical Kills . | . . . . . . Critical Parts Destroyed . | . . . . . . Critical Strikes 3 | . 1 2 . . . Blast 3 | . 1 2 . . . Melee Attacks . | . . . . . . Impact . | . . . . . . Slashing . | . . . . . . Piercing . | . . . . . . Sneak Attacks . | . . . . . . Combat Hostiles . | . . . . . . Follow-up Attacks . | . . . . . . Damage Inflicted 2775 | . 1186 818 232 103 436 Guns 257 | . 54 . 25 103 75 Cannons 620 | . 335 285 . . . Explosions 1891 | . 790 533 207 . 361 Melee . | . . . . . . Ramming 7 | . 7 . . . . Kinetic 778 | . 335 285 25 103 30 Thermal 205 | . 54 . . . 151 Explosive 1740 | . 790 533 207 . 210 Electromagnetic 45 | . . . . . 45 Impact . | . . . . . . Slashing . | . . . . . . Piercing . | . . . . . . Highest Corruption . | . . . . . . Average Corruption . | . . . . . . Corruption Purged . | . . . . . . Corruption Blocked . | . . . . . . Overload Shots . | . . . . . . Overflow Damage 28 | . 6 22 . . . Projectiles 6 | . 6 . . . . Explosions 22 | . . 22 . . . Melee . | . . . . . . Knockbacks 9 | . 4 5 . . . Impact . | . . . . . . Kinetic 9 | . 4 5 . . . Secondary . | . . . . . . Self-Inflicted Damage 72 | . 44 . . . 28 Shots 3 | . 2 . . . 1 Rammed . | . . . . . . Targets Rammed 1 | . 1 . . . . Kicked . | . . . . . . Crushed 1 | . 1 . . . . Highest Temperature 54 | . 54 9 16 3 40 Average Temperature 12 | . 14 5 10 3 17 Received Heat Transfer 262 | . 96 . 20 10 136 Siege Activations . | . . . . . . Robots Corrupted . | . . . . . . Combat Hostiles . | . . . . . . Parts Fried . | . . . . . . Impact Corruptions . | . . . . . . Robots Melted . | . . . . . . Combat Hostiles . | . . . . . . Parts Melted 1 | . . . 1 . . Heat Transferred 225 | . 125 . . . 100 Parts Sabotaged . | . . . . . . Parts Stolen . | . . . . . . Parts Stripped . | . . . . . . Power Chain Reactions 1 | . . . . . 1 Alert | -11 -10 -10 -9 -9 -8 ------- Run | Yrd Mat Min Mat Min Mat Peak Influence 196 | . 196 164 161 126 64 Initial 62 | . . 22 . 62 . Average 49 | . 56 44 90 46 10 Maximum Alert Level . | . . . . . . Low Security (%) 100 | 100 100 100 100 100 100 Level 1 . | . . . . . . Level 2 . | . . . . . . Level 3 . | . . . . . . Level 4 . | . . . . . . Level 5 . | . . . . . . High Security . | . . . . . . Max Security . | . . . . . . Squads Dispatched 5 | . 2 . 2 . 1 Investigation 3 | . 1 . 1 . 1 Extermination . | . . . . . . Reinforcement 2 | . 1 . 1 . . Assault . | . . . . . . Garrison . | . . . . . . Intercept . | . . . . . . Searches Triggered . | . . . . . . Construction Impeded . | . . . . . . Haulers Reinforced . | . . . . . . Active Scanning Responses . | . . . . . . Cargo Convoy Interrupts . | . . . . . . Stealth | -11 -10 -10 -9 -9 -8 --------- Run | Yrd Mat Min Mat Min Mat Distress Signals 4 | . 1 1 2 . . Communications Jammed . | . . . . . . Distress Signals . | . . . . . . Times Spotted 50 | . 16 16 4 6 8 Peak Tracking Total 4 | . 3 3 4 2 4 Tactical Retreats 1 | . . 1 . . . Traps | -11 -10 -10 -9 -9 -8 ------- Run | Yrd Mat Min Mat Min Mat Traps Triggered 2 | . 2 . . . . Indirectly . | . . . . . . Trap Hack Attempts . | . . . . . . Triggered . | . . . . . . Disarmed . | . . . . . . Reprogrammed . | . . . . . . Reused . | . . . . . . Traps Extracted . | . . . . . . Installed . | . . . . . . Triggered . | . . . . . . Machines | -11 -10 -10 -9 -9 -8 ---------- Run | Yrd Mat Min Mat Min Mat Machines Disabled 1 | . 1 . . . . Max in Single Turn 1 | . 1 . . . . Machines Repaired . | . . . . . . Machines Dismantled . | . . . . . . Machines Sabotaged . | . . . . . . Overloaded Fab Kills . | . . . . . . Hacking | -11 -10 -10 -9 -9 -8 --------- Run | Yrd Mat Min Mat Min Mat Machines Accessed 3 | . 2 . . . 1 Terminals 2 | . 1 . . . 1 Fabricators . | . . . . . . Repair Stations 1 | . 1 . . . . Recycling Units . | . . . . . . Scanalyzers . | . . . . . . Garrison Access . | . . . . . . Total Hacks 9 | . 6 . . . 3 Successful 7 | . 6 . . . 1 Failed 2 | . . . . . 2 Catastrophic . | . . . . . . Database Lockouts . | . . . . . . Manual . | . . . . . . Terminals 4 | . 1 . . . 3 Fabricators . | . . . . . . Repair Stations 5 | . 5 . . . . Recycling Units . | . . . . . . Scanalyzers . | . . . . . . Garrison Access . | . . . . . . Terminal Hacks 2 | . 1 . . . 1 Record 1 | . . . . . 1 Terminal Index 1 | . 1 . . . . Fabricator Hacks . | . . . . . . Repair Station Hacks 5 | . 5 . . . . Scan Component 2 | . 2 . . . . Repair 2 | . 2 . . . . Refit 1 | . 1 . . . . Recycling Unit Hacks . | . . . . . . Scanalyzer . | . . . . . . Garrison Access Hacks . | . . . . . . Unauthorized Hacks . | . . . . . . Terminals . | . . . . . . Fabricators . | . . . . . . Repair Stations . | . . . . . . Recycling Units . | . . . . . . Scanalyzers . | . . . . . . Garrison Access . | . . . . . . Data Cores Recovered 1 | . . . . . 1 Used . | . . . . . . Hacking Detections 2 | . 1 . . . 1 Full Trace Events 2 | . 1 . . . 1 Feedback Events . | . . . . . . Feedback Blocked . | . . . . . . Robot Schematics Acquired . | . . . . . . Robots Built . | . . . . . . Authchips . | . . . . . . Time . | . . . . . . Total Robot Build Rating . | . . . . . . Part Schematics Acquired . | . . . . . . Parts Built . | . . . . . . Authchips . | . . . . . . Time . | . . . . . . Total Part Build Rating . | . . . . . . Parts Repaired 2 | . 2 . . . . Time 52 | . 52 . . . . Parts Recycled . | . . . . . . Recycled Matter . | . . . . . . Retrieved Matter . | . . . . . . Retrieved Components . | . . . . . . Parts Scanalyzed . | . . . . . . Part Schematics Acquired . | . . . . . . Parts Damaged . | . . . . . . Bothacking | -11 -10 -10 -9 -9 -8 ------------ Run | Yrd Mat Min Mat Min Mat Used RIF Installer . | . . . . . . Robots Hacked . | . . . . . . Non-combat . | . . . . . . Combat . | . . . . . . Robot Hacks Applied . | . . . . . . Relay Couplers Released . | . . . . . . Fabnet Peak Effective % . | . . . . . . Robots Rewired . | . . . . . . Allies Hacked . | . . . . . . Hacks Repelled . | . . . . . . Allies | -11 -10 -10 -9 -9 -8 -------- Run | Yrd Mat Min Mat Min Mat Total Allies 2 | . . 2 . . . Largest Group 2 | . . 2 1 1 1 Highest-Rated Group 43 | . . 43 31 31 26 Highest-Rated Ally 31 | . . 31 31 31 26 Total Orders . | . . . . . . Ally Attacks 49 | . . 22 7 15 5 Total Damage 551 | . . 234 64 210 43 Kills 10 | . . 4 2 3 1 Allies Corrupted . | . . . . . . Allies Melted . | . . . . . . Intel | -11 -10 -10 -9 -9 -8 ------- Run | Yrd Mat Min Mat Min Mat Robot Analysis Total . | . . . . . . Derelict Logs Recovered 2 | . . . . 2 . Drone Launches . | . . . . . . Drone Recoveries . | . . . . . . Exploration | -11 -10 -10 -9 -9 -8 ------------- Run | Yrd Mat Min Mat Min Mat Turns Passed 5179 | 75 1646 1689 282 1374 113 Spaces Moved 1985 | 45 670 633 111 486 40 Core 13 | 6 7 . . . . Treads 1972 | 39 663 633 111 486 40 Legs . | . . . . . . Wheels . | . . . . . . Hover . | . . . . . . Flight . | . . . . . . Fastest Speed 50 | 50 160 240 240 240 240 Average Speed 225 | 145 178 240 240 275 240 Slowest Speed 400 | 160 400 240 240 320 240 Overloaded Moves . | . . . . . . Propulsion Burnouts . | . . . . . . Robots Hopped . | . . . . . . Cave-ins Triggered . | . . . . . . Exploration Rate (%) 49 | 4 88 91 13 94 7 Regions Visited 5 Branch Regions 2 Pre-discovered Areas 2 | . . 1 . 1 . Known Exits Taken 4 | . 1 1 1 1 . Unknown Exits Taken 1 | 1 . . . . . Scrap Searched 4 | . . 2 . 2 . Spaces Dug 10 | . 10 . . . . Terrain Destroyed 128 | . 74 22 13 . 19 Melee . | . . . . . . Projectile 5 | . 3 2 . . . AOE 123 | . 71 20 13 . 19 Terrain Rammed . | . . . . . . Walls Destroyed . | . . . . . . Machines Disabled . | . . . . . . Actions | -11 -10 -10 -9 -9 -8 --------- Run | Yrd Mat Min Mat Min Mat Total 2568 | 53 1070 768 119 510 48 Wait 427 | . 327 94 . 6 . Move 1980 | 44 669 632 110 485 40 Hop . | . . . . . . Pick Up 28 | 3 15 5 1 3 1 Fast Attach 6 | 4 2 . . . . Attach 18 | 2 10 1 2 1 2 Detach 1 | . 1 . . . . Swap 2 | . 1 1 . . . Drop 8 | . 5 3 . . . Fire 97 | . 39 32 6 15 5 Melee . | . . . . . . Ram . | . . . . . . Kick . | . . . . . . Crush 1 | . 1 . . . . Escape Stasis . | . . . . . . Rewire . | . . . . . . Trap . | . . . . . . Miscellaneous . | . . . . . . Route ------- -11/Scrapyard -10/Materials (discovered 4 exits: *Mat x3 / *Min) -10/Mines (discovered 2 exits: *Mat x2) -9/Materials -9/Mines (discovered 2 exits: *Mat x2) -8/Materials History --------- Turn | Location | Event 2 | -11/Scrapyard | Discovered new exit (range 16) 76 | -11/Scrapyard | Entered Materials 217 | -10/Materials | Discovered new exit (range 9) 262 | -10/Materials | Discovered new exit (range 16) 311 | -10/Materials | Build established: Mutant 467 | -10/Materials | Discovered new exit (range 9) 971 | -10/Materials | Identified exit to Materials 1134 | -10/Materials | Identified exit to Mines 1472 | -10/Materials | Discovered exit to Materials (range 16) 1614 | -10/Materials | Repaired Grenade Launcher 1641 | -10/Materials | Repaired Ion Engine 1722 | -10/Materials | Entered Mines 1883 | -10/Mines | Discovered exit to Materials (range 13) 1922 | -10/Mines | Discovered exit to Materials (range 8) 2069 | -10/Mines | Learned location of Storage (-9) 2477 | -10/Mines | Excavation squad dispatched 2477 | -10/Mines | A large section of the Mines collapsed 2783 | -10/Mines | Received a Rocket Launcher from a helpful Derelict 3411 | -10/Mines | Entered Materials 3411 | -9/Materials | Accompanied by 1 ally 3411 | -9/Materials | Evolved 2 slots: Utility x2 3416 | -9/Materials | Led the pair of lost Derelicts to an unsafe place 3566 | -9/Materials | Met 8R-AWN 3664 | -9/Materials | Discovered new exit (range 12) 3691 | -9/Materials | Identified exit to Mines 3693 | -9/Materials | Entered Mines 3693 | -9/Mines | Accompanied by 1 ally 3696 | -9/Mines | Followed 8R-AWN into the Mines 3732 | -9/Mines | Discovered new exit (range 7) 3938 | -9/Mines | Found a damaged Exp. Sensor Array with a note attached 3944 | -9/Mines | Found Prototype Device 4569 | -9/Mines | Discovered new exit (range 7) 4581 | -9/Mines | Identified exit to Materials 4766 | -9/Mines | Learned location of Zion (-7) 5067 | -9/Mines | Entered Materials 5067 | -8/Materials | Accompanied by 1 ally 5067 | -8/Materials | Evolved 2 slots: Propulsion x1, Weapon x1 5180 | -8/Materials | Self-destructed Last Messages --------------- payload. 05156_ G-47 Trooper unfolds itself. 05160_ T-07 Excavator is excavating. 05163_ K-01 Serf collects debris. 05165_ DO-5ZV(g) suffers critical hit (Burn). 05165_ DO-5ZV(g) destroyed. 05167_ K-01 Serf collects debris. 05167_ K-01 Serf destroyed. 05169_ U-05 Engineer lays Concrete. 05172_ Critical hit (Burn: +26). 05174_ T-07 Excavator is excavating. 05175_ The unstable cave ceiling collapses. 05175_ Chain reaction triggered in Lgt. Angular Momentum Engine. 05175_ G-47 Trooper destroyed. 05178_ U-05 Engineer lays Concrete. 05178_ EM Pulse Gun destroyed. 05178_ T-07 Excavator is excavating. 05179_ U-05 Engineer lays Concrete. 05180_ Rocket Launcher destroyed. Map ----- +----------------------------------------------------+ | | | | | | | | | | | | | | | | | | | | | | | ?????????????????????????????????????????????????? | | ?????????????????????????????????????????????????? | | ?????????????????????????????????????????????????? | | ?????????????????????????????????????????????????? | | ?????????????????????????????????????????????????? | | ????????????????????#############????????????????? | | ????????????????????# # #????????????????? | | ??????????########### " # = ####?????????????? | | ??????????# ## T # % ###????????????? | | ????####### ## " ! ### ????????? | | ##### # ## = % ???????? | | #= ## %! ???????? | | + ## [ g ?????????? | | /#* ###+## g =% #?????????????? | | ##### # + @ ! #??????????????? | | ????# #### ### u ####### #??????????????? | | ??? #??# #?# #??????????????????????? | | ?! !#??##########?# #??????????????????????? | | ##!!!!##?????????????# u #??????????????????????? | | ?######??????????????# #??????????????????????? | | ?????????????????????# +??????????????????????? | | ?????????????????????# #??????????????????????? | | ?????????????????????# g#??????????????????????? | | ????????????????????? g??????????????????????? | | ?????????????????????# #####?????????????????????? | | ????????????????????? ??????????????????????????? | | ????????????????????? t??????????????????????????? | | ????????????????????? ??????????????????????????? | | ????????????????????##???????????????????????????? | | ?????????????????????????????????????????????????? | | ?????????????????????????????????????????????????? | | ?????????????????????????????????????????????????? | | ?????????????????????????????????????????????????? | | ?????????????????????????????????????????????????? | | ?????????????????????????????????????????????????? | | ?????????????????????????????????????????????????? | | ?????????????????????????????????????????????????? | | ?????????????????????????????????????????????????? | | ?????????????????????????????????????????????????? | +----------------------------------------------------+ Best States ------------- Heat Dissipation 31 Energy Generation 10 Energy Capacity 250 Matter Stores 300 Matter Capacity 300 Sight Range 18 Terrain Scan Density 10 Evasion (%) 40 Recoil Reduction 2 Item Schematics ----------------- None Robot Schematics ------------------ None Fabricated ------------ Nothing Alien Tech Used ----------------- None Achievements -------------- None Challenges ------------ None Game ------ Seed ArmageddonFireThrower Manual? 0 Play Time 00:33:23 Cumulative 6.9 hours Start 2024.04.29 @ 23:18:04 End 2024.04.29 @ 23:52:22 Sessions 1 Manual Loads 0 Difficulty Rogue Special Mode None Game No. 12 Rogue 12 Adventurer 0 Explorer 0 Win Type - Total 0 Types 0/0/0/0/0/0/0/0/0 Lore% 5 Gallery% 13 Achievement% 12 Wizard Run 0 Options --------- Layout 1 ASCII 0 Keyboard 0 Movement Mouse Keybinds 0 Fullscreen 2 Font 24/Smallcaps Map View 50x35 Zoom Use 0% Tactical HUD 1 Map Filters NONE Filters NONE Steam 1 RUN: 7e55f1ac-5cfe-4b30-8d4c-7244f10b42fa